Department family,Entity,Date,Expense type,Expense area,Supplier,Transaction number,Amount
Department of Health,Leicestershire Partnership NHS Trust,02/10/23,UHL Facilities Management SLA,Estates & Facilities Central,UHL NHS TRUST (RWE),C0027867,-89258.17
Department of Health,Leicestershire Partnership NHS Trust,02/10/23,Crs_NHS_LT1y -Resus Inventory Supplied.,Balance Sheet Collection,SUPPLY CHAIN CO LTD,1124173142,31784.04
Department of Health,Leicestershire Partnership NHS Trust,02/10/23,Payroll Deductions -Salary Sacrifice Cars Scheme,Balance Sheet Collection,TUSKER,81350,45419.62
Department of Health,Leicestershire Partnership NHS Trust,02/10/23,Lease Rents (IFRS16),Work Force Transformation,NSPCC,120766,30278.51
Department of Health,Leicestershire Partnership NHS Trust,02/10/23,Admin & Clerical - Band 4,Business Development,NORTHAMPTONSHIRE HC NHS FT (RP1),5154456,1290.76
Department of Health,Leicestershire Partnership NHS Trust,02/10/23,DIRECTOR,Business Development,NORTHAMPTONSHIRE HC NHS FT (RP1),5154456,5507.21
Department of Health,Leicestershire Partnership NHS Trust,02/10/23,Admin & Clerical - Band 5,Chief Executives Office,NORTHAMPTONSHIRE HC NHS FT (RP1),5154456,745.61
Department of Health,Leicestershire Partnership NHS Trust,02/10/23,Admin & Clerical - Band 6,Chief Executives Office,NORTHAMPTONSHIRE HC NHS FT (RP1),5154456,1579.55
Department of Health,Leicestershire Partnership NHS Trust,02/10/23,CHIEF EXECUTIVE'S REMUNERATION,Chief Executives Office,NORTHAMPTONSHIRE HC NHS FT (RP1),5154456,20224.52
Department of Health,Leicestershire Partnership NHS Trust,02/10/23,DIRECTOR,Chief Executives Office,NORTHAMPTONSHIRE HC NHS FT (RP1),5154456,44519.05
Department of Health,Leicestershire Partnership NHS Trust,02/10/23,Senior Manager - Band 8A,Chief Nurse,NORTHAMPTONSHIRE HC NHS FT (RP1),5154456,7129.29
Department of Health,Leicestershire Partnership NHS Trust,02/10/23,Senior Manager - Band 8C,Director of Finance,NORTHAMPTONSHIRE HC NHS FT (RP1),5154456,3887.59
Department of Health,Leicestershire Partnership NHS Trust,02/10/23,Admin & Clerical - Band 6,HIS Management Team,NORTHAMPTONSHIRE HC NHS FT (RP1),5154456,1451.39
Department of Health,Leicestershire Partnership NHS Trust,02/10/23,Senior Manager - Band 8D,HIS Management Team,NORTHAMPTONSHIRE HC NHS FT (RP1),5154456,6356.08
Department of Health,Leicestershire Partnership NHS Trust,03/10/23,Healthcare Services / Recharges from Non-NHS Bodies,Adult Eating Disorder Collaborative,PRIORY GROUP,301SEP23LEC,77441.45
Department of Health,Leicestershire Partnership NHS Trust,03/10/23,Medical Equipment Repairs / Maintenance,Community Health Services Management,SPIRIT DIGITAL LTD,SIN230905SDI00065,43740.00
Department of Health,Leicestershire Partnership NHS Trust,04/10/23,NHS Property Services Estates Management,"Braunstone Health and Social Care Centre (part) (P16, LPT)",NHS PROPERTY SERVICES LTD,738143,77109.25
Department of Health,Leicestershire Partnership NHS Trust,04/10/23,NHS Property Services Estates Management,Charnwood Mill (PROPCO),NHS PROPERTY SERVICES LTD,738140,39815.40
Department of Health,Leicestershire Partnership NHS Trust,04/10/23,NHS Property Services Estates Management,St. Luke's Hospital (PROPCO),NHS PROPERTY SERVICES LTD,738148,44168.69
Department of Health,Leicestershire Partnership NHS Trust,04/10/23,NHS Property Services Estates Management,Melton Mowbray Hospital (previously St. Mary's) (PROPCO),NHS PROPERTY SERVICES LTD,738144,27836.24
Department of Health,Leicestershire Partnership NHS Trust,04/10/23,NHS Property Services Estates Management,Melton Mowbray Hospital (previously St. Mary's) (PROPCO),NHS PROPERTY SERVICES LTD,738133,50846.10
Department of Health,Leicestershire Partnership NHS Trust,04/10/23,NHS Property Services Estates Management,St Lukes Treatment Centre,NHS PROPERTY SERVICES LTD,738141,55680.33
Department of Health,Leicestershire Partnership NHS Trust,04/10/23,NHS Property Services Estates Management,New Parks Health Centre (PROPCO),NHS PROPERTY SERVICES LTD,739272,53726.55
Department of Health,Leicestershire Partnership NHS Trust,04/10/23,NHS Property Services Estates Management,Melton Mowbray Hospital (previously St. Mary's) (PROPCO),NHS PROPERTY SERVICES LTD,739274,151061.58
Department of Health,Leicestershire Partnership NHS Trust,04/10/23,NHS Property Services Estates Management,"Braunstone Health and Social Care Centre (part) (P16, LPT)",NHS PROPERTY SERVICES LTD,739273,64028.52
Department of Health,Leicestershire Partnership NHS Trust,04/10/23,NHS Property Services Estates Management,St. Luke's Hospital (PROPCO),NHS PROPERTY SERVICES LTD,739284,262712.11
Department of Health,Leicestershire Partnership NHS Trust,04/10/23,NHS Property Services Estates Management,Melton Mowbray Hospital (previously St. Mary's) (PROPCO),NHS PROPERTY SERVICES LTD,739287,44046.61
Department of Health,Leicestershire Partnership NHS Trust,04/10/23,NHS Property Services Estates Management,Charnwood Mill (PROPCO),NHS PROPERTY SERVICES LTD,739281,12697.92
Department of Health,Leicestershire Partnership NHS Trust,04/10/23,NHS Property Services Estates Management,South Wigston Health Centre (PROPCO),NHS PROPERTY SERVICES LTD,739281,54909.65
Department of Health,Leicestershire Partnership NHS Trust,04/10/23,NHS Property Services Estates Management,St Lukes Treatment Centre,NHS PROPERTY SERVICES LTD,739288,57715.95
Department of Health,Leicestershire Partnership NHS Trust,04/10/23,Med GP Trainees,Medical Trainees,MWL TEACHING HOSPITALS NHS TRUST,16825160,29691.80
Department of Health,Leicestershire Partnership NHS Trust,04/10/23,Unitary Payment,"The Agnes Unit (AKA Assessment and Treatment Centre) (P85, LPT)",ARDEN PARTNERSHIP (LEICESTER),SI0134,144317.23
Department of Health,Leicestershire Partnership NHS Trust,04/10/23,Admin & Clerical - Band 6,360 Assurance - Coventry & Warwick,SOUTH WARWICKSHIRE NHSFT,1100015684,30476.26
Department of Health,Leicestershire Partnership NHS Trust,04/10/23,Admin & Clerical - Band 7,360 Assurance - Coventry & Warwick,SOUTH WARWICKSHIRE NHSFT,1100015684,139397.60
Department of Health,Leicestershire Partnership NHS Trust,04/10/23,Non Pay Reserves,360 Assurance - Coventry & Warwick,SOUTH WARWICKSHIRE NHSFT,1100015684,7500.00
Department of Health,Leicestershire Partnership NHS Trust,04/10/23,Senior Manager - Band 8B,360 Assurance - Coventry & Warwick,SOUTH WARWICKSHIRE NHSFT,1100015684,86655.03
Department of Health,Leicestershire Partnership NHS Trust,04/10/23,Senior Manager - Band 8D,360 Assurance - Coventry & Warwick,SOUTH WARWICKSHIRE NHSFT,1100015684,6357.91
Department of Health,Leicestershire Partnership NHS Trust,04/10/23,Admin & Clerical - Agency,360 Assurance - Internal Audit,SOUTH WARWICKSHIRE NHSFT,1100015684,0.00
Department of Health,Leicestershire Partnership NHS Trust,05/10/23,WIP Project Not in BS - Buildings excl Dwellings,Work in Progress,TILBURY DOUGLAS CONSTRUCTION LTD,23100037,172749.20
Department of Health,Leicestershire Partnership NHS Trust,05/10/23,WIP Project Not in BS - Buildings excl Dwellings,Work in Progress,TILBURY DOUGLAS CONSTRUCTION LTD,23100038,80538.74
Department of Health,Leicestershire Partnership NHS Trust,05/10/23,Healthcare Services / Recharges from Non-NHS Bodies,Adult Eating Disorder Collaborative,ELLERN MEDE MOORGATE,OTM0745,36000.00
Department of Health,Leicestershire Partnership NHS Trust,05/10/23,Payroll Deductions -Home Electronics 84 Sep 23,Balance Sheet Collection,SME HCI LTD,148268,31435.10
Department of Health,Leicestershire Partnership NHS Trust,05/10/23,Electricity,Estates & Facilities Central,UHL NHS TRUST (RWE),C0027908,-81573.46
Department of Health,Leicestershire Partnership NHS Trust,06/10/23,Nurse - Band 6 -Agency,AMH - Central Access Point,HCL WORKFORCE SOLUTIONS,HWSI0001938,4328.82
Department of Health,Leicestershire Partnership NHS Trust,06/10/23,Nurse - Band 6 -Agency,Adult City Central CMHT - St Peters,HCL WORKFORCE SOLUTIONS,HWSI0001938,1479.54
Department of Health,Leicestershire Partnership NHS Trust,06/10/23,Nurse - Band 6 -Agency,Adult County South Leicestershire CMHT,HCL WORKFORCE SOLUTIONS,HWSI0001938,4077.89
Department of Health,Leicestershire Partnership NHS Trust,06/10/23,Nurse - Band 6 -Agency,City West CMHT MHSOP,HCL WORKFORCE SOLUTIONS,HWSI0001938,4367.60
Department of Health,Leicestershire Partnership NHS Trust,06/10/23,Nurse - Band 6 -Agency,Crisis Resolution,HCL WORKFORCE SOLUTIONS,HWSI0001938,4029.15
Department of Health,Leicestershire Partnership NHS Trust,06/10/23,Nurse - Band 6 -Agency,Melton & Rutland CMHT MHSOP,HCL WORKFORCE SOLUTIONS,HWSI0001938,1387.89
Department of Health,Leicestershire Partnership NHS Trust,06/10/23,Nurse - Band 6 -Agency,SDF Case Load Reviews 23/24,HCL WORKFORCE SOLUTIONS,HWSI0001938,1355.35
Department of Health,Leicestershire Partnership NHS Trust,06/10/23,Nurse - Band 6 -Agency,AMH - Central Access Point,HCL NURSING,HNSI0001463,2357.88
Department of Health,Leicestershire Partnership NHS Trust,06/10/23,NURSE - BAND 2 - AGENCY,Agnes Unit,HCL NURSING,HNSI0001463,11923.70
Department of Health,Leicestershire Partnership NHS Trust,06/10/23,NURSE - BAND 5 - AGENCY,Agnes Unit,HCL NURSING,HNSI0001463,21157.50
Department of Health,Leicestershire Partnership NHS Trust,06/10/23,Nurse - Band 7 - Agency,Agnes Unit,HCL NURSING,HNSI0001463,1248.32
Department of Health,Leicestershire Partnership NHS Trust,06/10/23,NURSE - BAND 2 - AGENCY,Ashby Ward (Bradgate Unit),HCL NURSING,HNSI0001463,962.89
Department of Health,Leicestershire Partnership NHS Trust,06/10/23,NURSE - BAND 5 - AGENCY,Ashby Ward (Bradgate Unit),HCL NURSING,HNSI0001463,10911.56
Department of Health,Leicestershire Partnership NHS Trust,06/10/23,NURSE - BAND 2 - AGENCY,Aston Ward Bradgate Unit (Prev Welford),HCL NURSING,HNSI0001463,3980.13
Department of Health,Leicestershire Partnership NHS Trust,06/10/23,NURSE - BAND 5 - AGENCY,Aston Ward Bradgate Unit (Prev Welford),HCL NURSING,HNSI0001463,2134.95
Department of Health,Leicestershire Partnership NHS Trust,06/10/23,NURSE - BAND 2 - AGENCY,Beaumont Ward - Bradgate Unit,HCL NURSING,HNSI0001463,4367.62
Department of Health,Leicestershire Partnership NHS Trust,06/10/23,NURSE - BAND 5 - AGENCY,Beaumont Ward - Bradgate Unit,HCL NURSING,HNSI0001463,9841.14
Department of Health,Leicestershire Partnership NHS Trust,06/10/23,NURSE - BAND 2 - AGENCY,Belvoir Psychiatric Intensive Care Unit,HCL NURSING,HNSI0001463,1986.53
Department of Health,Leicestershire Partnership NHS Trust,06/10/23,NURSE - BAND 5 - AGENCY,Belvoir Psychiatric Intensive Care Unit,HCL NURSING,HNSI0001463,4651.96
Department of Health,Leicestershire Partnership NHS Trust,06/10/23,NURSE - BAND 2 - AGENCY,Bosworth Ward - Bradgate Unit,HCL NURSING,HNSI0001463,378.45
Department of Health,Leicestershire Partnership NHS Trust,06/10/23,NURSE - BAND 5 - AGENCY,Bosworth Ward - Bradgate Unit,HCL NURSING,HNSI0001463,2909.35
Department of Health,Leicestershire Partnership NHS Trust,06/10/23,NURSE - BAND 5 - AGENCY,Cedar (Willows),HCL NURSING,HNSI0001463,2378.01
Department of Health,Leicestershire Partnership NHS Trust,06/10/23,Nurse - Band 6 -Agency,City West CMHT MHSOP,HCL NURSING,HNSI0001463,1046.25
Department of Health,Leicestershire Partnership NHS Trust,06/10/23,NURSE - BAND 2 - AGENCY,Coleman Ward,HCL NURSING,HNSI0001463,5509.44
Department of Health,Leicestershire Partnership NHS Trust,06/10/23,NURSE - BAND 5 - AGENCY,Coleman Ward,HCL NURSING,HNSI0001463,2084.35
Department of Health,Leicestershire Partnership NHS Trust,06/10/23,NURSE - BAND 2 - AGENCY,Griffin Ward (HPC),HCL NURSING,HNSI0001463,2167.56
Department of Health,Leicestershire Partnership NHS Trust,06/10/23,NURSE - BAND 5 - AGENCY,Griffin Ward (HPC),HCL NURSING,HNSI0001463,6431.83
Department of Health,Leicestershire Partnership NHS Trust,06/10/23,NURSE - BAND 2 - AGENCY,Gwendolen Ward,HCL NURSING,HNSI0001463,1602.61
Department of Health,Leicestershire Partnership NHS Trust,06/10/23,NURSE - BAND 5 - AGENCY,Gwendolen Ward,HCL NURSING,HNSI0001463,1508.23
Department of Health,Leicestershire Partnership NHS Trust,06/10/23,NURSE - BAND 2 - AGENCY,Heather Ward,HCL NURSING,HNSI0001463,3402.23
Department of Health,Leicestershire Partnership NHS Trust,06/10/23,NURSE - BAND 5 - AGENCY,Heather Ward,HCL NURSING,HNSI0001463,5790.96
Department of Health,Leicestershire Partnership NHS Trust,06/10/23,NURSE - BAND 2 - AGENCY,Kirby Ward,HCL NURSING,HNSI0001463,1878.07
Department of Health,Leicestershire Partnership NHS Trust,06/10/23,NURSE - BAND 5 - AGENCY,Kirby Ward,HCL NURSING,HNSI0001463,1297.26
Department of Health,Leicestershire Partnership NHS Trust,06/10/23,NURSE - BAND 2 - AGENCY,Maple Ward,HCL NURSING,HNSI0001463,411.68
Department of Health,Leicestershire Partnership NHS Trust,06/10/23,NURSE - BAND 5 - AGENCY,Maple Ward,HCL NURSING,HNSI0001463,1604.65
Department of Health,Leicestershire Partnership NHS Trust,06/10/23,Nurse - Band 6 -Agency,Mental Health Liaison Team,HCL NURSING,HNSI0001463,3289.15
Department of Health,Leicestershire Partnership NHS Trust,06/10/23,NURSE - BAND 2 - AGENCY,Mill Lodge,HCL NURSING,HNSI0001463,3544.36
Department of Health,Leicestershire Partnership NHS Trust,06/10/23,NURSE - BAND 5 - AGENCY,Mill Lodge,HCL NURSING,HNSI0001463,2089.10
Department of Health,Leicestershire Partnership NHS Trust,06/10/23,NURSE - BAND 2 - AGENCY,Phoenix Ward (HPC),HCL NURSING,HNSI0001463,2186.89
Department of Health,Leicestershire Partnership NHS Trust,06/10/23,NURSE - BAND 5 - AGENCY,Phoenix Ward (HPC),HCL NURSING,HNSI0001463,1424.38
Department of Health,Leicestershire Partnership NHS Trust,06/10/23,NURSE - BAND 2 - AGENCY,Place Of Safety Assessment Unit,HCL NURSING,HNSI0001463,365.96
Department of Health,Leicestershire Partnership NHS Trust,06/10/23,NURSE - BAND 5 - AGENCY,Place Of Safety Assessment Unit,HCL NURSING,HNSI0001463,3510.48
Department of Health,Leicestershire Partnership NHS Trust,06/10/23,NURSE - BAND 2 - AGENCY,Sycamore (Willows),HCL NURSING,HNSI0001463,402.24
Department of Health,Leicestershire Partnership NHS Trust,06/10/23,NURSE - BAND 5 - AGENCY,Sycamore (Willows),HCL NURSING,HNSI0001463,2185.02
Department of Health,Leicestershire Partnership NHS Trust,06/10/23,NURSE - BAND 2 - AGENCY,Thornton Ward - Bradgate Unit,HCL NURSING,HNSI0001463,1938.13
Department of Health,Leicestershire Partnership NHS Trust,06/10/23,NURSE - BAND 5 - AGENCY,Thornton Ward - Bradgate Unit,HCL NURSING,HNSI0001463,2919.83
Department of Health,Leicestershire Partnership NHS Trust,06/10/23,Nurse - Band 6 -Agency,CAMHS Waiting List Monies,HCL WORKFORCE SOLUTIONS,HWSI0001940,11456.56
Department of Health,Leicestershire Partnership NHS Trust,06/10/23,Nurse - Band 6 -Agency,Crisis Response and Home Treatment,HCL WORKFORCE SOLUTIONS,HWSI0001940,9944.29
Department of Health,Leicestershire Partnership NHS Trust,06/10/23,Nurse - Band 7 - Agency,Crisis Response and Home Treatment,HCL WORKFORCE SOLUTIONS,HWSI0001940,1368.75
Department of Health,Leicestershire Partnership NHS Trust,06/10/23,NURSE - BAND 2 - AGENCY,CAMHS Inpatient Service,HCL NURSING,HNSI0001465,4639.50
Department of Health,Leicestershire Partnership NHS Trust,06/10/23,NURSE - BAND 5 - AGENCY,CAMHS Inpatient Service,HCL NURSING,HNSI0001465,7825.43
Department of Health,Leicestershire Partnership NHS Trust,06/10/23,Nurse - Band 7 - Agency,CAMHS Waiting List Monies,HCL NURSING,HNSI0001465,2822.68
Department of Health,Leicestershire Partnership NHS Trust,06/10/23,Nurse - Band 7 - Agency,Crisis Response and Home Treatment,HCL NURSING,HNSI0001465,3823.33
Department of Health,Leicestershire Partnership NHS Trust,06/10/23,NURSE - BAND 2 - AGENCY,Welford Ward (Prev Langley),HCL NURSING,HNSI0001465,694.37
Department of Health,Leicestershire Partnership NHS Trust,06/10/23,NURSE - BAND 5 - AGENCY,Welford Ward (Prev Langley),HCL NURSING,HNSI0001465,5276.17
Department of Health,Leicestershire Partnership NHS Trust,06/10/23,Nurse - Band 6 -Agency,CAMHS Waiting List Monies,HCL WORKFORCE SOLUTIONS,HWSI0001949,13690.37
Department of Health,Leicestershire Partnership NHS Trust,06/10/23,Nurse - Band 6 -Agency,Crisis Response and Home Treatment,HCL WORKFORCE SOLUTIONS,HWSI0001949,8780.87
Department of Health,Leicestershire Partnership NHS Trust,06/10/23,Nurse - Band 7 - Agency,Crisis Response and Home Treatment,HCL WORKFORCE SOLUTIONS,HWSI0001949,1368.75
Department of Health,Leicestershire Partnership NHS Trust,06/10/23,Nurse - Band 6 -Agency,AMH - Central Access Point,HCL WORKFORCE SOLUTIONS,HWSI0001948,7653.17
Department of Health,Leicestershire Partnership NHS Trust,06/10/23,Nurse - Band 6 -Agency,Adult City Central CMHT - St Peters,HCL WORKFORCE SOLUTIONS,HWSI0001948,1479.54
Department of Health,Leicestershire Partnership NHS Trust,06/10/23,Nurse - Band 6 -Agency,Adult County South Leicestershire CMHT,HCL WORKFORCE SOLUTIONS,HWSI0001948,3835.74
Department of Health,Leicestershire Partnership NHS Trust,06/10/23,Nurse - Band 6 -Agency,Crisis Resolution,HCL WORKFORCE SOLUTIONS,HWSI0001948,6320.01
Department of Health,Leicestershire Partnership NHS Trust,06/10/23,Nurse - Band 6 -Agency,Melton & Rutland CMHT MHSOP,HCL WORKFORCE SOLUTIONS,HWSI0001948,1387.89
Department of Health,Leicestershire Partnership NHS Trust,06/10/23,Nurse - Band 6 -Agency,SDF Case Load Reviews 23/24,HCL WORKFORCE SOLUTIONS,HWSI0001948,1355.35
Department of Health,Leicestershire Partnership NHS Trust,06/10/23,Nurse - Band 6 -Agency,AMH - Central Access Point,HCL NURSING,HNSI0001467,3211.36
Department of Health,Leicestershire Partnership NHS Trust,06/10/23,NURSE - BAND 2 - AGENCY,Agnes Unit,HCL NURSING,HNSI0001467,11747.54
Department of Health,Leicestershire Partnership NHS Trust,06/10/23,NURSE - BAND 5 - AGENCY,Agnes Unit,HCL NURSING,HNSI0001467,23123.14
Department of Health,Leicestershire Partnership NHS Trust,06/10/23,Nurse - Band 7 - Agency,Agnes Unit,HCL NURSING,HNSI0001467,2027.75
Department of Health,Leicestershire Partnership NHS Trust,06/10/23,NURSE - BAND 5 - AGENCY,Ashby Ward (Bradgate Unit),HCL NURSING,HNSI0001467,13970.67
Department of Health,Leicestershire Partnership NHS Trust,06/10/23,NURSE - BAND 2 - AGENCY,Aston Ward Bradgate Unit (Prev Welford),HCL NURSING,HNSI0001467,6514.13
Department of Health,Leicestershire Partnership NHS Trust,06/10/23,NURSE - BAND 5 - AGENCY,Aston Ward Bradgate Unit (Prev Welford),HCL NURSING,HNSI0001467,6236.71
Department of Health,Leicestershire Partnership NHS Trust,06/10/23,NURSE - BAND 2 - AGENCY,Beaumont Ward - Bradgate Unit,HCL NURSING,HNSI0001467,2243.60
Department of Health,Leicestershire Partnership NHS Trust,06/10/23,NURSE - BAND 5 - AGENCY,Beaumont Ward - Bradgate Unit,HCL NURSING,HNSI0001467,6135.81
Department of Health,Leicestershire Partnership NHS Trust,06/10/23,NURSE - BAND 2 - AGENCY,Belvoir Psychiatric Intensive Care Unit,HCL NURSING,HNSI0001467,5825.02
Department of Health,Leicestershire Partnership NHS Trust,06/10/23,NURSE - BAND 2 - AGENCY,Bosworth Ward - Bradgate Unit,HCL NURSING,HNSI0001467,1145.44
Department of Health,Leicestershire Partnership NHS Trust,06/10/23,NURSE - BAND 5 - AGENCY,Bosworth Ward - Bradgate Unit,HCL NURSING,HNSI0001467,2414.61
Department of Health,Leicestershire Partnership NHS Trust,06/10/23,NURSE - BAND 2 - AGENCY,Cedar (Willows),HCL NURSING,HNSI0001467,449.84
Department of Health,Leicestershire Partnership NHS Trust,06/10/23,NURSE - BAND 5 - AGENCY,Cedar (Willows),HCL NURSING,HNSI0001467,1595.65
Department of Health,Leicestershire Partnership NHS Trust,06/10/23,Nurse - Band 6 -Agency,City West CMHT MHSOP,HCL NURSING,HNSI0001467,1046.25
Department of Health,Leicestershire Partnership NHS Trust,06/10/23,NURSE - BAND 2 - AGENCY,Coleman Ward,HCL NURSING,HNSI0001467,4065.85
Department of Health,Leicestershire Partnership NHS Trust,06/10/23,NURSE - BAND 5 - AGENCY,Coleman Ward,HCL NURSING,HNSI0001467,2143.95
Department of Health,Leicestershire Partnership NHS Trust,06/10/23,NURSE - BAND 5 - AGENCY,Crisis Resolution,HCL NURSING,HNSI0001467,1321.42
Department of Health,Leicestershire Partnership NHS Trust,06/10/23,NURSE - BAND 2 - AGENCY,Griffin Ward (HPC),HCL NURSING,HNSI0001467,1680.08
Department of Health,Leicestershire Partnership NHS Trust,06/10/23,NURSE - BAND 5 - AGENCY,Griffin Ward (HPC),HCL NURSING,HNSI0001467,6196.61
Department of Health,Leicestershire Partnership NHS Trust,06/10/23,NURSE - BAND 2 - AGENCY,Gwendolen Ward,HCL NURSING,HNSI0001467,4737.46
Department of Health,Leicestershire Partnership NHS Trust,06/10/23,NURSE - BAND 5 - AGENCY,Gwendolen Ward,HCL NURSING,HNSI0001467,2977.26
Department of Health,Leicestershire Partnership NHS Trust,06/10/23,NURSE - BAND 2 - AGENCY,Heather Ward,HCL NURSING,HNSI0001467,3551.54
Department of Health,Leicestershire Partnership NHS Trust,06/10/23,NURSE - BAND 5 - AGENCY,Heather Ward,HCL NURSING,HNSI0001467,3553.61
Department of Health,Leicestershire Partnership NHS Trust,06/10/23,NURSE - BAND 2 - AGENCY,Kirby Ward,HCL NURSING,HNSI0001467,1684.60
Department of Health,Leicestershire Partnership NHS Trust,06/10/23,NURSE - BAND 5 - AGENCY,Kirby Ward,HCL NURSING,HNSI0001467,1749.89
Department of Health,Leicestershire Partnership NHS Trust,06/10/23,NURSE - BAND 2 - AGENCY,Maple Ward,HCL NURSING,HNSI0001467,557.26
Department of Health,Leicestershire Partnership NHS Trust,06/10/23,NURSE - BAND 5 - AGENCY,Maple Ward,HCL NURSING,HNSI0001467,1655.58
Department of Health,Leicestershire Partnership NHS Trust,06/10/23,Nurse - Band 6 -Agency,Mental Health Liaison Team,HCL NURSING,HNSI0001467,2897.35
Department of Health,Leicestershire Partnership NHS Trust,06/10/23,NURSE - BAND 2 - AGENCY,Mill Lodge,HCL NURSING,HNSI0001467,920.14
Department of Health,Leicestershire Partnership NHS Trust,06/10/23,NURSE - BAND 5 - AGENCY,Mill Lodge,HCL NURSING,HNSI0001467,2128.95
Department of Health,Leicestershire Partnership NHS Trust,06/10/23,NURSE - BAND 2 - AGENCY,Phoenix Ward (HPC),HCL NURSING,HNSI0001467,3611.50
Department of Health,Leicestershire Partnership NHS Trust,06/10/23,NURSE - BAND 5 - AGENCY,Phoenix Ward (HPC),HCL NURSING,HNSI0001467,3583.90
Department of Health,Leicestershire Partnership NHS Trust,06/10/23,NURSE - BAND 2 - AGENCY,Place Of Safety Assessment Unit,HCL NURSING,HNSI0001467,623.68
Department of Health,Leicestershire Partnership NHS Trust,06/10/23,NURSE - BAND 5 - AGENCY,Place Of Safety Assessment Unit,HCL NURSING,HNSI0001467,2939.62
Department of Health,Leicestershire Partnership NHS Trust,06/10/23,NURSE - BAND 2 - AGENCY,Sycamore (Willows),HCL NURSING,HNSI0001467,650.59
Department of Health,Leicestershire Partnership NHS Trust,06/10/23,NURSE - BAND 5 - AGENCY,Sycamore (Willows),HCL NURSING,HNSI0001467,1888.28
Department of Health,Leicestershire Partnership NHS Trust,06/10/23,NURSE - BAND 2 - AGENCY,Thornton Ward - Bradgate Unit,HCL NURSING,HNSI0001467,1022.82
Department of Health,Leicestershire Partnership NHS Trust,06/10/23,NURSE - BAND 5 - AGENCY,Thornton Ward - Bradgate Unit,HCL NURSING,HNSI0001467,4762.22
Department of Health,Leicestershire Partnership NHS Trust,06/10/23,WIP Project Not in BS - Buildings excl Dwellings,Work in Progress,TILBURY DOUGLAS CONSTRUCTION LTD,23100068,85734.95
Department of Health,Leicestershire Partnership NHS Trust,06/10/23,WIP Project Not in BS - Buildings excl Dwellings,Work in Progress,TILBURY DOUGLAS CONSTRUCTION LTD,23100069,125220.46
Department of Health,Leicestershire Partnership NHS Trust,06/10/23,WIP Project Not in BS - Buildings excl Dwellings,Work in Progress,TILBURY DOUGLAS CONSTRUCTION LTD,23100084,75262.13
Department of Health,Leicestershire Partnership NHS Trust,06/10/23,WIP Project Not in BS - Buildings excl Dwellings,Work in Progress,TILBURY DOUGLAS CONSTRUCTION LTD,23100073,51673.76
Department of Health,Leicestershire Partnership NHS Trust,06/10/23,WIP Project Not in BS - Buildings excl Dwellings,Work in Progress,TILBURY DOUGLAS CONSTRUCTION LTD,23100083,25913.27
Department of Health,Leicestershire Partnership NHS Trust,06/10/23,WIP Project Not in BS - Buildings excl Dwellings,Work in Progress,TILBURY DOUGLAS CONSTRUCTION LTD,23100074,112547.59
Department of Health,Leicestershire Partnership NHS Trust,09/10/23,Crs_NHS_LT1y -Resus Inventory Supplied.,Balance Sheet Collection,SUPPLY CHAIN CO LTD,1124180552,38481.65
Department of Health,Leicestershire Partnership NHS Trust,09/10/23,HR / Payroll Services,HR Employment Services,LINCOLNSHIRE PART NHSFT(RP7),L0001023,34400.00
Department of Health,Leicestershire Partnership NHS Trust,09/10/23,Lease Rents (IFRS16),"St Peters Health Center (Part 1st and 2nd floors) (P66, LPT)",LEICESTER LIFT CO,LEP1-SI1378,34244.84
Department of Health,Leicestershire Partnership NHS Trust,09/10/23,Healthcare Services / Recharges from Non-NHS Bodies,Marie Curie Service,MARIE CURIE CANCER CARE,18720,26576.37
Department of Health,Leicestershire Partnership NHS Trust,09/10/23,NURSE - BAND 2 - AGENCY,Beechwood Ward,HCL NURSING,HNSI0001468,6864.96
Department of Health,Leicestershire Partnership NHS Trust,09/10/23,NURSE - BAND 5 - AGENCY,Beechwood Ward,HCL NURSING,HNSI0001468,4408.94
Department of Health,Leicestershire Partnership NHS Trust,09/10/23,NURSE - BAND 5 - AGENCY,City Planned Care - East,HCL NURSING,HNSI0001468,25977.37
Department of Health,Leicestershire Partnership NHS Trust,09/10/23,NURSE - BAND 5 - AGENCY,City Planned Care - West,HCL NURSING,HNSI0001468,24034.35
Department of Health,Leicestershire Partnership NHS Trust,09/10/23,NURSE - BAND 2 - AGENCY,Clarendon Ward,HCL NURSING,HNSI0001468,3243.88
Department of Health,Leicestershire Partnership NHS Trust,09/10/23,NURSE - BAND 5 - AGENCY,Clarendon Ward,HCL NURSING,HNSI0001468,1739.01
Department of Health,Leicestershire Partnership NHS Trust,09/10/23,NURSE - BAND 2 - AGENCY,Coalville Snibston Ward,HCL NURSING,HNSI0001468,5985.52
Department of Health,Leicestershire Partnership NHS Trust,09/10/23,NURSE - BAND 5 - AGENCY,Coalville Snibston Ward,HCL NURSING,HNSI0001468,2250.85
Department of Health,Leicestershire Partnership NHS Trust,09/10/23,NURSE - BAND 2 - AGENCY,Coalville Ward 2,HCL NURSING,HNSI0001468,2880.93
Department of Health,Leicestershire Partnership NHS Trust,09/10/23,NURSE - BAND 5 - AGENCY,Coalville Ward 2,HCL NURSING,HNSI0001468,2350.50
Department of Health,Leicestershire Partnership NHS Trust,09/10/23,NURSE - BAND 2 - AGENCY,Dalgliesh Ward,HCL NURSING,HNSI0001468,8349.34
Department of Health,Leicestershire Partnership NHS Trust,09/10/23,NURSE - BAND 5 - AGENCY,Dalgliesh Ward,HCL NURSING,HNSI0001468,1863.47
Department of Health,Leicestershire Partnership NHS Trust,09/10/23,NURSE - BAND 5 - AGENCY,"East Planned Care - Melton,Syston,Rutland",HCL NURSING,HNSI0001468,2130.11
Department of Health,Leicestershire Partnership NHS Trust,09/10/23,NURSE - BAND 5 - AGENCY,"East Planned Care - Oadby,Wigston & Harborough",HCL NURSING,HNSI0001468,1534.66
Department of Health,Leicestershire Partnership NHS Trust,09/10/23,NURSE - BAND 2 - AGENCY,H&B Comm Hosp East Ward,HCL NURSING,HNSI0001468,4864.48
Department of Health,Leicestershire Partnership NHS Trust,09/10/23,NURSE - BAND 5 - AGENCY,H&B Comm Hosp East Ward,HCL NURSING,HNSI0001468,10430.88
Department of Health,Leicestershire Partnership NHS Trust,09/10/23,NURSE - BAND 2 - AGENCY,H&B Comm Hosp North Ward,HCL NURSING,HNSI0001468,6681.62
Department of Health,Leicestershire Partnership NHS Trust,09/10/23,NURSE - BAND 5 - AGENCY,H&B Comm Hosp North Ward,HCL NURSING,HNSI0001468,1467.41
Department of Health,Leicestershire Partnership NHS Trust,09/10/23,NURSE - BAND 2 - AGENCY,Lough Swithland Ward,HCL NURSING,HNSI0001468,1707.07
Department of Health,Leicestershire Partnership NHS Trust,09/10/23,NURSE - BAND 5 - AGENCY,Lough Swithland Ward,HCL NURSING,HNSI0001468,2717.05
Department of Health,Leicestershire Partnership NHS Trust,09/10/23,NURSE - BAND 2 - AGENCY,Loughborough Charnwood Ward,HCL NURSING,HNSI0001468,5036.20
Department of Health,Leicestershire Partnership NHS Trust,09/10/23,NURSE - BAND 5 - AGENCY,Loughborough Charnwood Ward,HCL NURSING,HNSI0001468,5444.73
Department of Health,Leicestershire Partnership NHS Trust,09/10/23,NURSE - BAND 2 - AGENCY,Rutland Ward Nursing,HCL NURSING,HNSI0001468,4037.50
Department of Health,Leicestershire Partnership NHS Trust,09/10/23,NURSE - BAND 5 - AGENCY,Rutland Ward Nursing,HCL NURSING,HNSI0001468,1222.50
Department of Health,Leicestershire Partnership NHS Trust,09/10/23,NURSE - BAND 2 - AGENCY,St Lukes Stroke Ward,HCL NURSING,HNSI0001468,4357.17
Department of Health,Leicestershire Partnership NHS Trust,09/10/23,NURSE - BAND 5 - AGENCY,St Lukes Stroke Ward,HCL NURSING,HNSI0001468,3836.75
Department of Health,Leicestershire Partnership NHS Trust,09/10/23,NURSE - BAND 2 - AGENCY,St Lukes Ward 3,HCL NURSING,HNSI0001468,4619.40
Department of Health,Leicestershire Partnership NHS Trust,09/10/23,NURSE - BAND 5 - AGENCY,St Lukes Ward 3,HCL NURSING,HNSI0001468,1071.18
Department of Health,Leicestershire Partnership NHS Trust,09/10/23,NURSE - BAND 5 - AGENCY,West Planned Care  - Charnwood Hub,HCL NURSING,HNSI0001468,1936.93
Department of Health,Leicestershire Partnership NHS Trust,09/10/23,NURSE - BAND 5 - AGENCY,West Planned Care  - Hinckley Hub,HCL NURSING,HNSI0001468,4347.81
Department of Health,Leicestershire Partnership NHS Trust,09/10/23,NURSE - BAND 2 - AGENCY,Beechwood Ward,HCL NURSING,HNSI0001464,5647.49
Department of Health,Leicestershire Partnership NHS Trust,09/10/23,NURSE - BAND 5 - AGENCY,Beechwood Ward,HCL NURSING,HNSI0001464,3958.07
Department of Health,Leicestershire Partnership NHS Trust,09/10/23,NURSE - BAND 5 - AGENCY,City Planned Care - East,HCL NURSING,HNSI0001464,21107.73
Department of Health,Leicestershire Partnership NHS Trust,09/10/23,NURSE - BAND 5 - AGENCY,City Planned Care - West,HCL NURSING,HNSI0001464,13479.91
Department of Health,Leicestershire Partnership NHS Trust,09/10/23,NURSE - BAND 2 - AGENCY,Clarendon Ward,HCL NURSING,HNSI0001464,5448.11
Department of Health,Leicestershire Partnership NHS Trust,09/10/23,NURSE - BAND 5 - AGENCY,Clarendon Ward,HCL NURSING,HNSI0001464,2040.04
Department of Health,Leicestershire Partnership NHS Trust,09/10/23,NURSE - BAND 2 - AGENCY,Coalville Snibston Ward,HCL NURSING,HNSI0001464,4994.65
Department of Health,Leicestershire Partnership NHS Trust,09/10/23,NURSE - BAND 5 - AGENCY,Coalville Snibston Ward,HCL NURSING,HNSI0001464,4096.83
Department of Health,Leicestershire Partnership NHS Trust,09/10/23,NURSE - BAND 2 - AGENCY,Coalville Ward 2,HCL NURSING,HNSI0001464,2993.02
Department of Health,Leicestershire Partnership NHS Trust,09/10/23,NURSE - BAND 5 - AGENCY,Coalville Ward 2,HCL NURSING,HNSI0001464,2351.09
Department of Health,Leicestershire Partnership NHS Trust,09/10/23,NURSE - BAND 2 - AGENCY,Dalgliesh Ward,HCL NURSING,HNSI0001464,8446.45
Department of Health,Leicestershire Partnership NHS Trust,09/10/23,NURSE - BAND 5 - AGENCY,Dalgliesh Ward,HCL NURSING,HNSI0001464,6893.19
Department of Health,Leicestershire Partnership NHS Trust,09/10/23,NURSE - BAND 5 - AGENCY,"East Planned Care - Melton,Syston,Rutland",HCL NURSING,HNSI0001464,1280.62
Department of Health,Leicestershire Partnership NHS Trust,09/10/23,NURSE - BAND 2 - AGENCY,H&B Comm Hosp East Ward,HCL NURSING,HNSI0001464,6186.68
Department of Health,Leicestershire Partnership NHS Trust,09/10/23,NURSE - BAND 5 - AGENCY,H&B Comm Hosp East Ward,HCL NURSING,HNSI0001464,5858.41
Department of Health,Leicestershire Partnership NHS Trust,09/10/23,NURSE - BAND 2 - AGENCY,H&B Comm Hosp North Ward,HCL NURSING,HNSI0001464,8412.44
Department of Health,Leicestershire Partnership NHS Trust,09/10/23,NURSE - BAND 5 - AGENCY,H&B Comm Hosp North Ward,HCL NURSING,HNSI0001464,2462.19
Department of Health,Leicestershire Partnership NHS Trust,09/10/23,NURSE - BAND 2 - AGENCY,Lough Swithland Ward,HCL NURSING,HNSI0001464,640.80
Department of Health,Leicestershire Partnership NHS Trust,09/10/23,NURSE - BAND 5 - AGENCY,Lough Swithland Ward,HCL NURSING,HNSI0001464,4399.69
Department of Health,Leicestershire Partnership NHS Trust,09/10/23,NURSE - BAND 2 - AGENCY,Loughborough Charnwood Ward,HCL NURSING,HNSI0001464,6982.19
Department of Health,Leicestershire Partnership NHS Trust,09/10/23,NURSE - BAND 5 - AGENCY,Loughborough Charnwood Ward,HCL NURSING,HNSI0001464,6937.24
Department of Health,Leicestershire Partnership NHS Trust,09/10/23,NURSE - BAND 2 - AGENCY,Rutland Ward Nursing,HCL NURSING,HNSI0001464,2217.21
Department of Health,Leicestershire Partnership NHS Trust,09/10/23,NURSE - BAND 5 - AGENCY,Rutland Ward Nursing,HCL NURSING,HNSI0001464,908.44
Department of Health,Leicestershire Partnership NHS Trust,09/10/23,NURSE - BAND 2 - AGENCY,St Lukes Stroke Ward,HCL NURSING,HNSI0001464,3341.73
Department of Health,Leicestershire Partnership NHS Trust,09/10/23,NURSE - BAND 5 - AGENCY,St Lukes Stroke Ward,HCL NURSING,HNSI0001464,5175.09
Department of Health,Leicestershire Partnership NHS Trust,09/10/23,NURSE - BAND 2 - AGENCY,St Lukes Ward 3,HCL NURSING,HNSI0001464,6292.74
Department of Health,Leicestershire Partnership NHS Trust,09/10/23,NURSE - BAND 5 - AGENCY,St Lukes Ward 3,HCL NURSING,HNSI0001464,259.54
Department of Health,Leicestershire Partnership NHS Trust,09/10/23,NURSE - BAND 5 - AGENCY,West Planned Care  - Charnwood Hub,HCL NURSING,HNSI0001464,1591.78
Department of Health,Leicestershire Partnership NHS Trust,09/10/23,NURSE - BAND 5 - AGENCY,West Planned Care  - Hinckley Hub,HCL NURSING,HNSI0001464,3290.53
Department of Health,Leicestershire Partnership NHS Trust,10/10/23,Water & Sewerage Charges,"Coalville Community Hospital (P138, LPT)",WATER PLUS,0865005329/CRN00602479,-37204.25
Department of Health,Leicestershire Partnership NHS Trust,11/10/23,GP IT Expenditure,Area Team,SOFTCAT PLC,INVUK1001935,43020.00
Department of Health,Leicestershire Partnership NHS Trust,11/10/23,GP IT Expenditure,HIS Service Delivery,SOFTCAT PLC,INVUK1001935,2040.00
Department of Health,Leicestershire Partnership NHS Trust,11/10/23,CHP Estates Management,Merlyn Vaz Centre (CHP),COMM HLTH PARTNERSHIPS LTD,0060313920,-37232.68
Department of Health,Leicestershire Partnership NHS Trust,11/10/23,CHP Estates Management,Merlyn Vaz Centre (CHP),COMM HLTH PARTNERSHIPS LTD,0060313918,-37232.68
Department of Health,Leicestershire Partnership NHS Trust,11/10/23,CHP Estates Management,Merlyn Vaz Centre (CHP),COMM HLTH PARTNERSHIPS LTD,0060313922,-37232.68
Department of Health,Leicestershire Partnership NHS Trust,11/10/23,CHP Estates Management,Merlyn Vaz Centre (CHP),COMM HLTH PARTNERSHIPS LTD,0060313925,-37232.68
Department of Health,Leicestershire Partnership NHS Trust,11/10/23,CHP Estates Management,Merlyn Vaz Centre (CHP),COMM HLTH PARTNERSHIPS LTD,0060313933,-37232.68
Department of Health,Leicestershire Partnership NHS Trust,11/10/23,CHP Estates Management,Merlyn Vaz Centre (CHP),COMM HLTH PARTNERSHIPS LTD,0060313937,-37232.68
Department of Health,Leicestershire Partnership NHS Trust,11/10/23,Services / Recharges from Other NHS Bodies,AED Step up Service,NORTHAMPTONSHIRE HC NHS FT (RP1),5154468,28088.00
Department of Health,Leicestershire Partnership NHS Trust,11/10/23,CHP Estates Management,Merlyn Vaz Centre (CHP),COMM HLTH PARTNERSHIPS LTD,0060313780,38911.10
Department of Health,Leicestershire Partnership NHS Trust,11/10/23,CHP Estates Management,Merlyn Vaz Centre (CHP),COMM HLTH PARTNERSHIPS LTD,0060313777,38911.10
Department of Health,Leicestershire Partnership NHS Trust,11/10/23,CHP Estates Management,Merlyn Vaz Centre (CHP),COMM HLTH PARTNERSHIPS LTD,0060313776,38911.10
Department of Health,Leicestershire Partnership NHS Trust,11/10/23,CHP Estates Management,Merlyn Vaz Centre (CHP),COMM HLTH PARTNERSHIPS LTD,0060313781,38911.10
Department of Health,Leicestershire Partnership NHS Trust,11/10/23,CHP Estates Management,Merlyn Vaz Centre (CHP),COMM HLTH PARTNERSHIPS LTD,0060313778,38911.10
Department of Health,Leicestershire Partnership NHS Trust,11/10/23,CHP Estates Management,Merlyn Vaz Centre (CHP),COMM HLTH PARTNERSHIPS LTD,0060313779,38911.10
Department of Health,Leicestershire Partnership NHS Trust,11/10/23,Services / Recharges from NHS Trusts,Inter Unit I & E Distribution,UHL NHS TRUST (RWE),L0274792,93376.76
Department of Health,Leicestershire Partnership NHS Trust,12/10/23,Computer License  Fees,Information Services,PHOENIX SOFTWARE LTD,OP/I984657,463858.99
Department of Health,Leicestershire Partnership NHS Trust,12/10/23,Insurance Costs,Chief Executives Office,NHS LITIGATION AUTHORITY,SICX413767,226283.80
Department of Health,Leicestershire Partnership NHS Trust,13/10/23,Healthcare Services / Recharges from Non-NHS Bodies,Medical Trainees,UNIVERSITY OF LEICESTER,2230128478,137300.04
Department of Health,Leicestershire Partnership NHS Trust,13/10/23,Telephone equipment,Trustwide Telephony,VIRGIN MEDIA BUSINESS,60051838,33036.37
Department of Health,Leicestershire Partnership NHS Trust,13/10/23,NHS Property Services Estates Management,St. Luke's Hospital (PROPCO),NHS PROPERTY SERVICES LTD,753626,-32311.21
Department of Health,Leicestershire Partnership NHS Trust,13/10/23,NHS Property Services Estates Management,Melton Mowbray Hospital (previously St. Mary's) (PROPCO),NHS PROPERTY SERVICES LTD,753621,-31692.98
Department of Health,Leicestershire Partnership NHS Trust,13/10/23,Mobile Telephone Rental / Calls,Specific Unit Budget Reserves,VODAFONE CORPORATE LTD,OCTOBER2023,70847.07
Department of Health,Leicestershire Partnership NHS Trust,16/10/23,Printing Costs,Estates & Facilities Central,LEXMARK INTERNATIONAL LTD,900650306769,28037.84
Department of Health,Leicestershire Partnership NHS Trust,16/10/23,Crs_NHS_LT1y -Resus Inventory Supplied.,Balance Sheet Collection,SUPPLY CHAIN CO LTD,1124186772,36808.82
Department of Health,Leicestershire Partnership NHS Trust,16/10/23,Trade_Drs_LT1y -Charitable  Funds Contra Account,Balance Sheet Collection,TESCO CORPORATE GIFT CARDS,106122895,28276.80
Department of Health,Leicestershire Partnership NHS Trust,18/10/23,Network Costs - WAN Maint,HIS Infrastructure,VIRGIN MEDIA BUSINESS,262421-213,35695.32
Department of Health,Leicestershire Partnership NHS Trust,18/10/23,Gas,"Beaumont Leys Health Centre (P94, LPT)",TOTAL GAS & POWER LTD,317448136/23,980.18
Department of Health,Leicestershire Partnership NHS Trust,18/10/23,Gas,"Bennion Centre (including Forest Grange Day Unit) (P8, LPT)",TOTAL GAS & POWER LTD,317448136/23,9041.76
Department of Health,Leicestershire Partnership NHS Trust,18/10/23,Gas,"Bradgate Unit (including Glenvale day Unit) (P7, LPT)",TOTAL GAS & POWER LTD,317448136/23,15315.38
Department of Health,Leicestershire Partnership NHS Trust,18/10/23,Gas,Bridge Park Plaza - First Floor (LPT),TOTAL GAS & POWER LTD,317448136/23,1464.98
Department of Health,Leicestershire Partnership NHS Trust,18/10/23,Gas,"Bridge Park Road - Units 2 and 3 (P148, LPT)",TOTAL GAS & POWER LTD,317448136/23,231.43
Department of Health,Leicestershire Partnership NHS Trust,18/10/23,Gas,"Coalville Community Hospital (P138, LPT)",TOTAL GAS & POWER LTD,317448136/23,10490.18
Department of Health,Leicestershire Partnership NHS Trust,18/10/23,Gas,"Coalville Health Centre (P121, LPT)",TOTAL GAS & POWER LTD,317448136/23,765.88
Department of Health,Leicestershire Partnership NHS Trust,18/10/23,Gas,"Evington Centre (P6, LPT)",TOTAL GAS & POWER LTD,317448136/23,1529.95
Department of Health,Leicestershire Partnership NHS Trust,18/10/23,Gas,"Farm Lodge (P34, LPT)",TOTAL GAS & POWER LTD,317448136/23,104.33
Department of Health,Leicestershire Partnership NHS Trust,18/10/23,Gas,"Feilding Palmer Hospital (Lutterworth) (P131, LPT)",TOTAL GAS & POWER LTD,317448136/23,2395.85
Department of Health,Leicestershire Partnership NHS Trust,18/10/23,Gas,"Frith Cottages 3 & 4 (P36, LPT)",TOTAL GAS & POWER LTD,317448136/23,152.38
Department of Health,Leicestershire Partnership NHS Trust,18/10/23,Gas,HIS,TOTAL GAS & POWER LTD,317448136/23,128.84
Department of Health,Leicestershire Partnership NHS Trust,18/10/23,Gas,"Hawthorne Centre - Coalville (P14, LPT)",TOTAL GAS & POWER LTD,317448136/23,445.31
Department of Health,Leicestershire Partnership NHS Trust,18/10/23,Gas,"Hinckley and Bosworth Community Hospital (Sunnyside) (P133, LPT)",TOTAL GAS & POWER LTD,317448136/23,8346.44
Department of Health,Leicestershire Partnership NHS Trust,18/10/23,Gas,"Hynca Lodge (P33, LPT)",TOTAL GAS & POWER LTD,317448136/23,418.20
Department of Health,Leicestershire Partnership NHS Trust,18/10/23,Gas,"LGH - Gwendolen House (P4, LPT)",TOTAL GAS & POWER LTD,317448136/23,928.25
Department of Health,Leicestershire Partnership NHS Trust,18/10/23,Gas,"Loughborough Hospital (P136, LPT)",TOTAL GAS & POWER LTD,317448136/23,18937.62
Department of Health,Leicestershire Partnership NHS Trust,18/10/23,Gas,Mawson House (LPT),TOTAL GAS & POWER LTD,317448136/23,329.87
Department of Health,Leicestershire Partnership NHS Trust,18/10/23,Gas,"Mett Centre (P49, LPT)",TOTAL GAS & POWER LTD,317448136/23,389.93
Department of Health,Leicestershire Partnership NHS Trust,18/10/23,Gas,"Narborough Health Centre (P117, LPT)",TOTAL GAS & POWER LTD,317448136/23,618.14
Department of Health,Leicestershire Partnership NHS Trust,18/10/23,Gas,"Neville Centre - LGH (was DSC) (P147, LPT)",TOTAL GAS & POWER LTD,317448136/23,1197.50
Department of Health,Leicestershire Partnership NHS Trust,18/10/23,Gas,"OSL House (P54, LPT)",TOTAL GAS & POWER LTD,317448136/23,203.41
Department of Health,Leicestershire Partnership NHS Trust,18/10/23,Gas,"Orchard Resource Centre (P15, LPT)",TOTAL GAS & POWER LTD,317448136/23,376.11
Department of Health,Leicestershire Partnership NHS Trust,18/10/23,Gas,"Rutland Memorial Hospital (P134, LPT)",TOTAL GAS & POWER LTD,317448136/23,366.86
Department of Health,Leicestershire Partnership NHS Trust,18/10/23,Gas,"Shepshed Health Centre (P123, LPT)",TOTAL GAS & POWER LTD,317448136/23,719.53
Department of Health,Leicestershire Partnership NHS Trust,18/10/23,Gas,"Springfield Road Health Centre (P92, LPT)",TOTAL GAS & POWER LTD,317448136/23,446.01
Department of Health,Leicestershire Partnership NHS Trust,18/10/23,Gas,"Stewart House (P61, LPT)",TOTAL GAS & POWER LTD,317448136/23,3046.95
Department of Health,Leicestershire Partnership NHS Trust,18/10/23,Gas,"Swithland House - London Road 352 (P44, LPT)",TOTAL GAS & POWER LTD,317448136/23,1098.70
Department of Health,Leicestershire Partnership NHS Trust,18/10/23,Gas,"The Agnes Unit (AKA Assessment and Treatment Centre) (P85, LPT)",TOTAL GAS & POWER LTD,317448136/23,5317.62
Department of Health,Leicestershire Partnership NHS Trust,18/10/23,Gas,The Beacon,TOTAL GAS & POWER LTD,317448136/23,2090.94
Department of Health,Leicestershire Partnership NHS Trust,18/10/23,Gas,"The Cedars (P19, LPT)",TOTAL GAS & POWER LTD,317448136/23,205.26
Department of Health,Leicestershire Partnership NHS Trust,18/10/23,Gas,"The Grange 1 (P4, LPT)",TOTAL GAS & POWER LTD,317448136/23,284.73
Department of Health,Leicestershire Partnership NHS Trust,18/10/23,Gas,"The Grange 2 (P41, LPT)",TOTAL GAS & POWER LTD,317448136/23,133.16
Department of Health,Leicestershire Partnership NHS Trust,18/10/23,Gas,"The Willows - Cordelia Close (P22, LPT)",TOTAL GAS & POWER LTD,317448136/23,3167.53
Department of Health,Leicestershire Partnership NHS Trust,18/10/23,Gas,"Valentine Centre (P3, LPT)",TOTAL GAS & POWER LTD,317448136/23,2635.92
Department of Health,Leicestershire Partnership NHS Trust,18/10/23,Gas,"Westcotes Group -Westcotes House (P78, LPT)",TOTAL GAS & POWER LTD,317448136/23,1230.26
Department of Health,Leicestershire Partnership NHS Trust,18/10/23,Gas,"Winstanley Drive Health Centre (P8, LPT)",TOTAL GAS & POWER LTD,317448136/23,632.42
Department of Health,Leicestershire Partnership NHS Trust,19/10/23,Med GP Trainees,Medical Trainees,MWL TEACHING HOSPITALS NHS TRUST,16825573,75000.00
Department of Health,Leicestershire Partnership NHS Trust,20/10/23,NURSE - BAND 2 - AGENCY,Beechwood Ward,HCL NURSING,HNSI0001475,6954.74
Department of Health,Leicestershire Partnership NHS Trust,20/10/23,NURSE - BAND 5 - AGENCY,Beechwood Ward,HCL NURSING,HNSI0001475,1347.78
Department of Health,Leicestershire Partnership NHS Trust,20/10/23,NURSE - BAND 5 - AGENCY,City Planned Care - East,HCL NURSING,HNSI0001475,33899.18
Department of Health,Leicestershire Partnership NHS Trust,20/10/23,NURSE - BAND 5 - AGENCY,City Planned Care - West,HCL NURSING,HNSI0001475,18377.17
Department of Health,Leicestershire Partnership NHS Trust,20/10/23,NURSE - BAND 2 - AGENCY,Clarendon Ward,HCL NURSING,HNSI0001475,2582.63
Department of Health,Leicestershire Partnership NHS Trust,20/10/23,NURSE - BAND 5 - AGENCY,Clarendon Ward,HCL NURSING,HNSI0001475,3842.08
Department of Health,Leicestershire Partnership NHS Trust,20/10/23,NURSE - BAND 2 - AGENCY,Coalville Snibston Ward,HCL NURSING,HNSI0001475,5143.04
Department of Health,Leicestershire Partnership NHS Trust,20/10/23,NURSE - BAND 5 - AGENCY,Coalville Snibston Ward,HCL NURSING,HNSI0001475,1973.40
Department of Health,Leicestershire Partnership NHS Trust,20/10/23,NURSE - BAND 2 - AGENCY,Coalville Ward 2,HCL NURSING,HNSI0001475,2940.36
Department of Health,Leicestershire Partnership NHS Trust,20/10/23,NURSE - BAND 5 - AGENCY,Coalville Ward 2,HCL NURSING,HNSI0001475,3543.82
Department of Health,Leicestershire Partnership NHS Trust,20/10/23,NURSE - BAND 2 - AGENCY,Dalgliesh Ward,HCL NURSING,HNSI0001475,7168.20
Department of Health,Leicestershire Partnership NHS Trust,20/10/23,NURSE - BAND 5 - AGENCY,Dalgliesh Ward,HCL NURSING,HNSI0001475,4066.69
Department of Health,Leicestershire Partnership NHS Trust,20/10/23,NURSE - BAND 5 - AGENCY,"East Planned Care - Melton,Syston,Rutland",HCL NURSING,HNSI0001475,3075.12
Department of Health,Leicestershire Partnership NHS Trust,20/10/23,NURSE - BAND 5 - AGENCY,"East Planned Care - Oadby,Wigston & Harborough",HCL NURSING,HNSI0001475,255.05
Department of Health,Leicestershire Partnership NHS Trust,20/10/23,NURSE - BAND 2 - AGENCY,H&B Comm Hosp East Ward,HCL NURSING,HNSI0001475,5280.54
Department of Health,Leicestershire Partnership NHS Trust,20/10/23,NURSE - BAND 5 - AGENCY,H&B Comm Hosp East Ward,HCL NURSING,HNSI0001475,3672.67
Department of Health,Leicestershire Partnership NHS Trust,20/10/23,NURSE - BAND 2 - AGENCY,H&B Comm Hosp North Ward,HCL NURSING,HNSI0001475,8732.66
Department of Health,Leicestershire Partnership NHS Trust,20/10/23,NURSE - BAND 5 - AGENCY,H&B Comm Hosp North Ward,HCL NURSING,HNSI0001475,3744.50
Department of Health,Leicestershire Partnership NHS Trust,20/10/23,NURSE - BAND 2 - AGENCY,Lough Swithland Ward,HCL NURSING,HNSI0001475,4797.71
Department of Health,Leicestershire Partnership NHS Trust,20/10/23,NURSE - BAND 5 - AGENCY,Lough Swithland Ward,HCL NURSING,HNSI0001475,4582.85
Department of Health,Leicestershire Partnership NHS Trust,20/10/23,NURSE - BAND 2 - AGENCY,Loughborough Charnwood Ward,HCL NURSING,HNSI0001475,4364.52
Department of Health,Leicestershire Partnership NHS Trust,20/10/23,NURSE - BAND 5 - AGENCY,Loughborough Charnwood Ward,HCL NURSING,HNSI0001475,9848.79
Department of Health,Leicestershire Partnership NHS Trust,20/10/23,NURSE - BAND 2 - AGENCY,Rutland Ward Nursing,HCL NURSING,HNSI0001475,6374.64
Department of Health,Leicestershire Partnership NHS Trust,20/10/23,NURSE - BAND 5 - AGENCY,Rutland Ward Nursing,HCL NURSING,HNSI0001475,2427.74
Department of Health,Leicestershire Partnership NHS Trust,20/10/23,NURSE - BAND 2 - AGENCY,St Lukes Stroke Ward,HCL NURSING,HNSI0001475,5258.88
Department of Health,Leicestershire Partnership NHS Trust,20/10/23,NURSE - BAND 5 - AGENCY,St Lukes Stroke Ward,HCL NURSING,HNSI0001475,4439.80
Department of Health,Leicestershire Partnership NHS Trust,20/10/23,NURSE - BAND 2 - AGENCY,St Lukes Ward 3,HCL NURSING,HNSI0001475,3219.94
Department of Health,Leicestershire Partnership NHS Trust,20/10/23,NURSE - BAND 5 - AGENCY,St Lukes Ward 3,HCL NURSING,HNSI0001475,779.39
Department of Health,Leicestershire Partnership NHS Trust,20/10/23,NURSE - BAND 5 - AGENCY,West Planned Care  - Charnwood Hub,HCL NURSING,HNSI0001475,1222.74
Department of Health,Leicestershire Partnership NHS Trust,20/10/23,NURSE - BAND 5 - AGENCY,West Planned Care  - Hinckley Hub,HCL NURSING,HNSI0001475,3370.24
Department of Health,Leicestershire Partnership NHS Trust,20/10/23,NURSE - BAND 2 - AGENCY,Beechwood Ward,HCL NURSING,HNSI0001481,6316.74
Department of Health,Leicestershire Partnership NHS Trust,20/10/23,NURSE - BAND 5 - AGENCY,Beechwood Ward,HCL NURSING,HNSI0001481,2889.44
Department of Health,Leicestershire Partnership NHS Trust,20/10/23,NURSE - BAND 5 - AGENCY,City Planned Care - East,HCL NURSING,HNSI0001481,22186.25
Department of Health,Leicestershire Partnership NHS Trust,20/10/23,NURSE - BAND 5 - AGENCY,City Planned Care - West,HCL NURSING,HNSI0001481,30889.00
Department of Health,Leicestershire Partnership NHS Trust,20/10/23,NURSE - BAND 2 - AGENCY,Clarendon Ward,HCL NURSING,HNSI0001481,4602.53
Department of Health,Leicestershire Partnership NHS Trust,20/10/23,NURSE - BAND 5 - AGENCY,Clarendon Ward,HCL NURSING,HNSI0001481,4512.76
Department of Health,Leicestershire Partnership NHS Trust,20/10/23,NURSE - BAND 2 - AGENCY,Coalville Snibston Ward,HCL NURSING,HNSI0001481,3905.91
Department of Health,Leicestershire Partnership NHS Trust,20/10/23,NURSE - BAND 5 - AGENCY,Coalville Snibston Ward,HCL NURSING,HNSI0001481,1627.92
Department of Health,Leicestershire Partnership NHS Trust,20/10/23,NURSE - BAND 2 - AGENCY,Coalville Ward 2,HCL NURSING,HNSI0001481,3278.82
Department of Health,Leicestershire Partnership NHS Trust,20/10/23,NURSE - BAND 5 - AGENCY,Coalville Ward 2,HCL NURSING,HNSI0001481,5689.69
Department of Health,Leicestershire Partnership NHS Trust,20/10/23,NURSE - BAND 2 - AGENCY,Dalgliesh Ward,HCL NURSING,HNSI0001481,6213.87
Department of Health,Leicestershire Partnership NHS Trust,20/10/23,NURSE - BAND 5 - AGENCY,Dalgliesh Ward,HCL NURSING,HNSI0001481,2984.80
Department of Health,Leicestershire Partnership NHS Trust,20/10/23,NURSE - BAND 5 - AGENCY,"East Planned Care - Melton,Syston,Rutland",HCL NURSING,HNSI0001481,4060.69
Department of Health,Leicestershire Partnership NHS Trust,20/10/23,NURSE - BAND 5 - AGENCY,"East Planned Care - Oadby,Wigston & Harborough",HCL NURSING,HNSI0001481,620.46
Department of Health,Leicestershire Partnership NHS Trust,20/10/23,NURSE - BAND 2 - AGENCY,H&B Comm Hosp East Ward,HCL NURSING,HNSI0001481,3776.44
Department of Health,Leicestershire Partnership NHS Trust,20/10/23,NURSE - BAND 5 - AGENCY,H&B Comm Hosp East Ward,HCL NURSING,HNSI0001481,5206.47
Department of Health,Leicestershire Partnership NHS Trust,20/10/23,NURSE - BAND 2 - AGENCY,H&B Comm Hosp North Ward,HCL NURSING,HNSI0001481,7865.16
Department of Health,Leicestershire Partnership NHS Trust,20/10/23,NURSE - BAND 5 - AGENCY,H&B Comm Hosp North Ward,HCL NURSING,HNSI0001481,2265.67
Department of Health,Leicestershire Partnership NHS Trust,20/10/23,NURSE - BAND 2 - AGENCY,Lough Swithland Ward,HCL NURSING,HNSI0001481,3404.45
Department of Health,Leicestershire Partnership NHS Trust,20/10/23,NURSE - BAND 5 - AGENCY,Lough Swithland Ward,HCL NURSING,HNSI0001481,4615.36
Department of Health,Leicestershire Partnership NHS Trust,20/10/23,NURSE - BAND 2 - AGENCY,Loughborough Charnwood Ward,HCL NURSING,HNSI0001481,4267.38
Department of Health,Leicestershire Partnership NHS Trust,20/10/23,NURSE - BAND 5 - AGENCY,Loughborough Charnwood Ward,HCL NURSING,HNSI0001481,4317.39
Department of Health,Leicestershire Partnership NHS Trust,20/10/23,NURSE - BAND 2 - AGENCY,Rutland Ward Nursing,HCL NURSING,HNSI0001481,3051.87
Department of Health,Leicestershire Partnership NHS Trust,20/10/23,NURSE - BAND 5 - AGENCY,Rutland Ward Nursing,HCL NURSING,HNSI0001481,3972.34
Department of Health,Leicestershire Partnership NHS Trust,20/10/23,NURSE - BAND 2 - AGENCY,St Lukes Stroke Ward,HCL NURSING,HNSI0001481,2498.74
Department of Health,Leicestershire Partnership NHS Trust,20/10/23,NURSE - BAND 5 - AGENCY,St Lukes Stroke Ward,HCL NURSING,HNSI0001481,7331.50
Department of Health,Leicestershire Partnership NHS Trust,20/10/23,NURSE - BAND 2 - AGENCY,St Lukes Ward 3,HCL NURSING,HNSI0001481,3127.71
Department of Health,Leicestershire Partnership NHS Trust,20/10/23,NURSE - BAND 5 - AGENCY,West Planned Care  - Charnwood Hub,HCL NURSING,HNSI0001481,6290.71
Department of Health,Leicestershire Partnership NHS Trust,20/10/23,NURSE - BAND 5 - AGENCY,West Planned Care  - Hinckley Hub,HCL NURSING,HNSI0001481,2265.43
Department of Health,Leicestershire Partnership NHS Trust,20/10/23,FP10'S,Adult City Drugs,NHS BUS SERVICES AUTHORITY,1000078983,48827.12
Department of Health,Leicestershire Partnership NHS Trust,20/10/23,FP10'S,Adult County Drugs,NHS BUS SERVICES AUTHORITY,1000078983,28679.29
Department of Health,Leicestershire Partnership NHS Trust,20/10/23,FP10'S,CAMHS Outpatients,NHS BUS SERVICES AUTHORITY,1000078983,8969.62
Department of Health,Leicestershire Partnership NHS Trust,20/10/23,FP10'S,Community Paediatrics,NHS BUS SERVICES AUTHORITY,1000078983,613.32
Department of Health,Leicestershire Partnership NHS Trust,20/10/23,FP10'S,Dementia Related Drugs and Investigations,NHS BUS SERVICES AUTHORITY,1000078983,37680.91
Department of Health,Leicestershire Partnership NHS Trust,20/10/23,FP10'S,Eating Disorders Outpatient Service,NHS BUS SERVICES AUTHORITY,1000078983,2161.59
Department of Health,Leicestershire Partnership NHS Trust,20/10/23,FP10'S,Forensic Services - Community,NHS BUS SERVICES AUTHORITY,1000078983,14468.78
Department of Health,Leicestershire Partnership NHS Trust,20/10/23,FP10'S,LAC,NHS BUS SERVICES AUTHORITY,1000078983,352.05
Department of Health,Leicestershire Partnership NHS Trust,20/10/23,FP10'S,LOROS Pharmacy,NHS BUS SERVICES AUTHORITY,1000078983,110.09
Department of Health,Leicestershire Partnership NHS Trust,20/10/23,FP10'S,Mental Health Liaison Team,NHS BUS SERVICES AUTHORITY,1000078983,13.07
Department of Health,Leicestershire Partnership NHS Trust,20/10/23,FP10'S,Snr Med Staff (Inc Med Reps),NHS BUS SERVICES AUTHORITY,1000078983,2301.36
Department of Health,Leicestershire Partnership NHS Trust,20/10/23,External Consultancy Fees,Facilities Team,BLOOM PROC SERV LTD,SIN046692,87030.91
Department of Health,Leicestershire Partnership NHS Trust,20/10/23,Healthcare Services / Recharges from Non-NHS Bodies,CMS Reserves,SPIRIT DIGITAL LTD,SIN231005SDI00069,118800.00
Department of Health,Leicestershire Partnership NHS Trust,20/10/23,Healthcare Services / Recharges from Non-NHS Bodies,Respiratory Service,SPIRIT DIGITAL LTD,SIN231005SDI00069,0.00
Department of Health,Leicestershire Partnership NHS Trust,23/10/23,Services / Recharges from NHS Trusts,Inter Unit I & E Distribution,UHL NHS TRUST (RWE),L0274946,38070.18
Department of Health,Leicestershire Partnership NHS Trust,23/10/23,Crs_NHS_LT1y -Resus Inventory Supplied.,Balance Sheet Collection,SUPPLY CHAIN CO LTD,1124194035,31150.16
Department of Health,Leicestershire Partnership NHS Trust,23/10/23,Water & Sewerage Charges,"Rutland Memorial Hospital (P134, LPT)",WATER PLUS,0865005329/INV03620346,105562.25
Department of Health,Leicestershire Partnership NHS Trust,23/10/23,Water & Sewerage Charges,"Beaumont Leys Health Centre (P94, LPT)",WATER PLUS,0865005329/INV03574645,155.77
Department of Health,Leicestershire Partnership NHS Trust,23/10/23,Water & Sewerage Charges,Bridge Park Road (Unit C18) (LPT),WATER PLUS,0865005329/INV03574645,86.71
Department of Health,Leicestershire Partnership NHS Trust,23/10/23,Water & Sewerage Charges,"Bridge Park Road - Units 2 and 3 (P148, LPT)",WATER PLUS,0865005329/INV03574645,382.94
Department of Health,Leicestershire Partnership NHS Trust,23/10/23,Water & Sewerage Charges,"Coalville Community Hospital (P138, LPT)",WATER PLUS,0865005329/INV03574645,36318.44
Department of Health,Leicestershire Partnership NHS Trust,23/10/23,Water & Sewerage Charges,"Coalville Health Centre (P121, LPT)",WATER PLUS,0865005329/INV03574645,280.47
Department of Health,Leicestershire Partnership NHS Trust,23/10/23,Water & Sewerage Charges,"Evington Centre (P6, LPT)",WATER PLUS,0865005329/INV03574645,1433.76
Department of Health,Leicestershire Partnership NHS Trust,23/10/23,Water & Sewerage Charges,"Feilding Palmer Hospital (Lutterworth) (P131, LPT)",WATER PLUS,0865005329/INV03574645,35.28
Department of Health,Leicestershire Partnership NHS Trust,23/10/23,Water & Sewerage Charges,HIS,WATER PLUS,0865005329/INV03574645,81.24
Department of Health,Leicestershire Partnership NHS Trust,23/10/23,Water & Sewerage Charges,Hinckley & District Hospital (PROPCO),WATER PLUS,0865005329/INV03574645,55.59
Department of Health,Leicestershire Partnership NHS Trust,23/10/23,Water & Sewerage Charges,"Hinckley and Bosworth Community Hospital (Sunnyside) (P133, LPT)",WATER PLUS,0865005329/INV03574645,1787.04
Department of Health,Leicestershire Partnership NHS Trust,23/10/23,Water & Sewerage Charges,"Hynca Lodge (P33, LPT)",WATER PLUS,0865005329/INV03574645,219.85
Department of Health,Leicestershire Partnership NHS Trust,23/10/23,Water & Sewerage Charges,Linnaeus Nursery - Cordelia Close,WATER PLUS,0865005329/INV03574645,43.08
Department of Health,Leicestershire Partnership NHS Trust,23/10/23,Water & Sewerage Charges,"Loughborough Hospital (P136, LPT)",WATER PLUS,0865005329/INV03574645,3211.18
Department of Health,Leicestershire Partnership NHS Trust,23/10/23,Water & Sewerage Charges,"Narborough Health Centre (P117, LPT)",WATER PLUS,0865005329/INV03574645,93.42
Department of Health,Leicestershire Partnership NHS Trust,23/10/23,Water & Sewerage Charges,"OSL House (P54, LPT)",WATER PLUS,0865005329/INV03574645,307.19
Department of Health,Leicestershire Partnership NHS Trust,23/10/23,Water & Sewerage Charges,"Orchard Resource Centre (P15, LPT)",WATER PLUS,0865005329/INV03574645,430.95
Department of Health,Leicestershire Partnership NHS Trust,23/10/23,Water & Sewerage Charges,"Prince Philip House (P96, LPT)",WATER PLUS,0865005329/INV03574645,359.51
Department of Health,Leicestershire Partnership NHS Trust,23/10/23,Water & Sewerage Charges,Rothesay -  London Road 352A (LPT),WATER PLUS,0865005329/INV03574645,312.65
Department of Health,Leicestershire Partnership NHS Trust,23/10/23,Water & Sewerage Charges,"Rutland Memorial Hospital (P134, LPT)",WATER PLUS,0865005329/INV03574645,3356.12
Department of Health,Leicestershire Partnership NHS Trust,23/10/23,Water & Sewerage Charges,"Shepshed Health Centre (P123, LPT)",WATER PLUS,0865005329/INV03574645,326.75
Department of Health,Leicestershire Partnership NHS Trust,23/10/23,Water & Sewerage Charges,"Springfield Road Health Centre (P92, LPT)",WATER PLUS,0865005329/INV03574645,280.47
Department of Health,Leicestershire Partnership NHS Trust,23/10/23,Water & Sewerage Charges,"Stewart House (P61, LPT)",WATER PLUS,0865005329/INV03574645,1181.70
Department of Health,Leicestershire Partnership NHS Trust,23/10/23,Water & Sewerage Charges,"Swithland House - London Road 352 (P44, LPT)",WATER PLUS,0865005329/INV03574645,110.12
Department of Health,Leicestershire Partnership NHS Trust,23/10/23,Water & Sewerage Charges,"The Agnes Unit (AKA Assessment and Treatment Centre) (P85, LPT)",WATER PLUS,0865005329/INV03574645,858.10
Department of Health,Leicestershire Partnership NHS Trust,23/10/23,Water & Sewerage Charges,"The Cedars (P19, LPT)",WATER PLUS,0865005329/INV03574645,131.35
Department of Health,Leicestershire Partnership NHS Trust,23/10/23,Water & Sewerage Charges,"The Grange 1 (P4, LPT)",WATER PLUS,0865005329/INV03574645,41.65
Department of Health,Leicestershire Partnership NHS Trust,23/10/23,Water & Sewerage Charges,"The Grange 2 (P41, LPT)",WATER PLUS,0865005329/INV03574645,68.37
Department of Health,Leicestershire Partnership NHS Trust,23/10/23,Water & Sewerage Charges,"The Willows - Cordelia Close (P22, LPT)",WATER PLUS,0865005329/INV03574645,1439.66
Department of Health,Leicestershire Partnership NHS Trust,23/10/23,Water & Sewerage Charges,"Westcotes Group -Westcotes House (P78, LPT)",WATER PLUS,0865005329/INV03574645,98.43
Department of Health,Leicestershire Partnership NHS Trust,23/10/23,Water & Sewerage Charges,Westcotes Group – Artemis House,WATER PLUS,0865005329/INV03574645,210.07
Department of Health,Leicestershire Partnership NHS Trust,23/10/23,Water & Sewerage Charges,"Rutland Memorial Hospital (P134, LPT)",WATER PLUS,0865005329/CRN00652933,-85528.07
Department of Health,Leicestershire Partnership NHS Trust,24/10/23,GP IT Expenditure,Area Team,PHOENIX SOFTWARE LTD,OP/I985550,93526.80
Department of Health,Leicestershire Partnership NHS Trust,24/10/23,Nurse - Band 6 -Agency,CAMHS Waiting List Monies,HCL WORKFORCE SOLUTIONS,HWSI0001963,14558.88
Department of Health,Leicestershire Partnership NHS Trust,24/10/23,Nurse - Band 6 -Agency,Crisis Response and Home Treatment,HCL WORKFORCE SOLUTIONS,HWSI0001963,11316.97
Department of Health,Leicestershire Partnership NHS Trust,24/10/23,Nurse - Band 7 - Agency,Crisis Response and Home Treatment,HCL WORKFORCE SOLUTIONS,HWSI0001963,1368.75
Department of Health,Leicestershire Partnership NHS Trust,24/10/23,NURSE - BAND 2 - AGENCY,CAMHS Inpatient Service,HCL NURSING,HNSI0001482,4892.25
Department of Health,Leicestershire Partnership NHS Trust,24/10/23,NURSE - BAND 5 - AGENCY,CAMHS Inpatient Service,HCL NURSING,HNSI0001482,8491.15
Department of Health,Leicestershire Partnership NHS Trust,24/10/23,Nurse - Band 7 - Agency,CAMHS Waiting List Monies,HCL NURSING,HNSI0001482,1485.83
Department of Health,Leicestershire Partnership NHS Trust,24/10/23,Nurse - Band 7 - Agency,Crisis Response and Home Treatment,HCL NURSING,HNSI0001482,3247.53
Department of Health,Leicestershire Partnership NHS Trust,24/10/23,NURSE - BAND 5 - AGENCY,Welford Ward (Prev Langley),HCL NURSING,HNSI0001482,4193.99
Department of Health,Leicestershire Partnership NHS Trust,24/10/23,Nurse - Band 6 -Agency,AMH - Central Access Point,HCL NURSING,HNSI0001480,5146.46
Department of Health,Leicestershire Partnership NHS Trust,24/10/23,NURSE - BAND 2 - AGENCY,Agnes Unit,HCL NURSING,HNSI0001480,12292.31
Department of Health,Leicestershire Partnership NHS Trust,24/10/23,NURSE - BAND 5 - AGENCY,Agnes Unit,HCL NURSING,HNSI0001480,18761.24
Department of Health,Leicestershire Partnership NHS Trust,24/10/23,Nurse - Band 7 - Agency,Agnes Unit,HCL NURSING,HNSI0001480,1702.23
Department of Health,Leicestershire Partnership NHS Trust,24/10/23,NURSE - BAND 2 - AGENCY,Ashby Ward (Bradgate Unit),HCL NURSING,HNSI0001480,617.53
Department of Health,Leicestershire Partnership NHS Trust,24/10/23,NURSE - BAND 5 - AGENCY,Ashby Ward (Bradgate Unit),HCL NURSING,HNSI0001480,10412.95
Department of Health,Leicestershire Partnership NHS Trust,24/10/23,NURSE - BAND 2 - AGENCY,Aston Ward Bradgate Unit (Prev Welford),HCL NURSING,HNSI0001480,549.23
Department of Health,Leicestershire Partnership NHS Trust,24/10/23,NURSE - BAND 5 - AGENCY,Aston Ward Bradgate Unit (Prev Welford),HCL NURSING,HNSI0001480,5254.14
Department of Health,Leicestershire Partnership NHS Trust,24/10/23,NURSE - BAND 2 - AGENCY,Beaumont Ward - Bradgate Unit,HCL NURSING,HNSI0001480,1219.48
Department of Health,Leicestershire Partnership NHS Trust,24/10/23,NURSE - BAND 5 - AGENCY,Beaumont Ward - Bradgate Unit,HCL NURSING,HNSI0001480,5043.36
Department of Health,Leicestershire Partnership NHS Trust,24/10/23,NURSE - BAND 2 - AGENCY,Belvoir Psychiatric Intensive Care Unit,HCL NURSING,HNSI0001480,4040.80
Department of Health,Leicestershire Partnership NHS Trust,24/10/23,NURSE - BAND 5 - AGENCY,Belvoir Psychiatric Intensive Care Unit,HCL NURSING,HNSI0001480,6394.66
Department of Health,Leicestershire Partnership NHS Trust,24/10/23,NURSE - BAND 2 - AGENCY,Bosworth Ward - Bradgate Unit,HCL NURSING,HNSI0001480,662.41
Department of Health,Leicestershire Partnership NHS Trust,24/10/23,NURSE - BAND 5 - AGENCY,Bosworth Ward - Bradgate Unit,HCL NURSING,HNSI0001480,1749.89
Department of Health,Leicestershire Partnership NHS Trust,24/10/23,NURSE - BAND 2 - AGENCY,Cedar (Willows),HCL NURSING,HNSI0001480,652.90
Department of Health,Leicestershire Partnership NHS Trust,24/10/23,NURSE - BAND 2 - AGENCY,Coleman Ward,HCL NURSING,HNSI0001480,3191.35
Department of Health,Leicestershire Partnership NHS Trust,24/10/23,NURSE - BAND 5 - AGENCY,Coleman Ward,HCL NURSING,HNSI0001480,2745.80
Department of Health,Leicestershire Partnership NHS Trust,24/10/23,NURSE - BAND 5 - AGENCY,Crisis Resolution,HCL NURSING,HNSI0001480,1321.42
Department of Health,Leicestershire Partnership NHS Trust,24/10/23,NURSE - BAND 2 - AGENCY,Griffin Ward (HPC),HCL NURSING,HNSI0001480,2761.90
Department of Health,Leicestershire Partnership NHS Trust,24/10/23,NURSE - BAND 5 - AGENCY,Griffin Ward (HPC),HCL NURSING,HNSI0001480,7705.84
Department of Health,Leicestershire Partnership NHS Trust,24/10/23,NURSE - BAND 2 - AGENCY,Gwendolen Ward,HCL NURSING,HNSI0001480,1512.74
Department of Health,Leicestershire Partnership NHS Trust,24/10/23,NURSE - BAND 5 - AGENCY,Gwendolen Ward,HCL NURSING,HNSI0001480,2576.67
Department of Health,Leicestershire Partnership NHS Trust,24/10/23,NURSE - BAND 2 - AGENCY,Heather Ward,HCL NURSING,HNSI0001480,1997.02
Department of Health,Leicestershire Partnership NHS Trust,24/10/23,NURSE - BAND 5 - AGENCY,Heather Ward,HCL NURSING,HNSI0001480,5735.21
Department of Health,Leicestershire Partnership NHS Trust,24/10/23,NURSE - BAND 2 - AGENCY,Kirby Ward,HCL NURSING,HNSI0001480,5620.93
Department of Health,Leicestershire Partnership NHS Trust,24/10/23,NURSE - BAND 5 - AGENCY,Kirby Ward,HCL NURSING,HNSI0001480,2678.07
Department of Health,Leicestershire Partnership NHS Trust,24/10/23,NURSE - BAND 2 - AGENCY,Maple Ward,HCL NURSING,HNSI0001480,455.98
Department of Health,Leicestershire Partnership NHS Trust,24/10/23,NURSE - BAND 5 - AGENCY,Maple Ward,HCL NURSING,HNSI0001480,539.30
Department of Health,Leicestershire Partnership NHS Trust,24/10/23,NURSE - BAND 2 - AGENCY,Mill Lodge,HCL NURSING,HNSI0001480,1037.08
Department of Health,Leicestershire Partnership NHS Trust,24/10/23,NURSE - BAND 5 - AGENCY,Mill Lodge,HCL NURSING,HNSI0001480,1301.24
Department of Health,Leicestershire Partnership NHS Trust,24/10/23,NURSE - BAND 2 - AGENCY,Phoenix Ward (HPC),HCL NURSING,HNSI0001480,1357.03
Department of Health,Leicestershire Partnership NHS Trust,24/10/23,NURSE - BAND 5 - AGENCY,Phoenix Ward (HPC),HCL NURSING,HNSI0001480,3457.63
Department of Health,Leicestershire Partnership NHS Trust,24/10/23,NURSE - BAND 2 - AGENCY,Place Of Safety Assessment Unit,HCL NURSING,HNSI0001480,203.06
Department of Health,Leicestershire Partnership NHS Trust,24/10/23,NURSE - BAND 5 - AGENCY,Place Of Safety Assessment Unit,HCL NURSING,HNSI0001480,525.33
Department of Health,Leicestershire Partnership NHS Trust,24/10/23,NURSE - BAND 2 - AGENCY,Sycamore (Willows),HCL NURSING,HNSI0001480,370.67
Department of Health,Leicestershire Partnership NHS Trust,24/10/23,NURSE - BAND 2 - AGENCY,Thornton Ward - Bradgate Unit,HCL NURSING,HNSI0001480,1174.36
Department of Health,Leicestershire Partnership NHS Trust,24/10/23,NURSE - BAND 5 - AGENCY,Thornton Ward - Bradgate Unit,HCL NURSING,HNSI0001480,3615.19
Department of Health,Leicestershire Partnership NHS Trust,26/10/23,CHP Estates Management,Westcotes Health Centre (CHP),COMM HLTH PARTNERSHIPS LTD,0060317441,39151.59
Department of Health,Leicestershire Partnership NHS Trust,26/10/23,CHP Estates Management,Merlyn Vaz Centre (CHP),COMM HLTH PARTNERSHIPS LTD,0060317439,88383.68
Department of Health,Leicestershire Partnership NHS Trust,26/10/23,GP IT Expenditure,Area Team,SOFTCAT PLC,INVUK1058573,45060.00
Department of Health,Leicestershire Partnership NHS Trust,26/10/23,HIS LPT Costs,HIS,THE PHOENIX PARTNERSHIP,14966,43302.37
Department of Health,Leicestershire Partnership NHS Trust,27/10/23,Landline Telephone Rental / Calls,"Beaumont Leys Health Centre (P94, LPT)",VIRGIN MEDIA BUSINESS,853083001/004/1023,325.38
Department of Health,Leicestershire Partnership NHS Trust,27/10/23,Landline Telephone Rental / Calls,"Bennion Centre (including Forest Grange Day Unit) (P8, LPT)",VIRGIN MEDIA BUSINESS,853083001/004/1023,8.77
Department of Health,Leicestershire Partnership NHS Trust,27/10/23,Landline Telephone Rental / Calls,"Bradgate Unit (including Glenvale day Unit) (P7, LPT)",VIRGIN MEDIA BUSINESS,853083001/004/1023,4744.06
Department of Health,Leicestershire Partnership NHS Trust,27/10/23,Landline Telephone Rental / Calls,Braunstone Health and Social Care Centre (Part) (PROPCO),VIRGIN MEDIA BUSINESS,853083001/004/1023,1133.02
Department of Health,Leicestershire Partnership NHS Trust,27/10/23,Landline Telephone Rental / Calls,Bridge Park Plaza - First Floor (LPT),VIRGIN MEDIA BUSINESS,853083001/004/1023,3276.35
Department of Health,Leicestershire Partnership NHS Trust,27/10/23,Landline Telephone Rental / Calls,"Coalville Community Hospital (P138, LPT)",VIRGIN MEDIA BUSINESS,853083001/004/1023,1202.45
Department of Health,Leicestershire Partnership NHS Trust,27/10/23,Landline Telephone Rental / Calls,"Coalville Health Centre (P121, LPT)",VIRGIN MEDIA BUSINESS,853083001/004/1023,121.64
Department of Health,Leicestershire Partnership NHS Trust,27/10/23,Landline Telephone Rental / Calls,County Hall,VIRGIN MEDIA BUSINESS,853083001/004/1023,1516.88
Department of Health,Leicestershire Partnership NHS Trust,27/10/23,Landline Telephone Rental / Calls,Estates & Facilities Central,VIRGIN MEDIA BUSINESS,853083001/004/1023,7.79
Department of Health,Leicestershire Partnership NHS Trust,27/10/23,Landline Telephone Rental / Calls,"Evington Centre (P6, LPT)",VIRGIN MEDIA BUSINESS,853083001/004/1023,204.06
Department of Health,Leicestershire Partnership NHS Trust,27/10/23,Landline Telephone Rental / Calls,HIS,VIRGIN MEDIA BUSINESS,853083001/004/1023,2922.59
Department of Health,Leicestershire Partnership NHS Trust,27/10/23,Landline Telephone Rental / Calls,"Hawthorne Centre - Coalville (P14, LPT)",VIRGIN MEDIA BUSINESS,853083001/004/1023,420.92
Department of Health,Leicestershire Partnership NHS Trust,27/10/23,Landline Telephone Rental / Calls,"Hinckley and Bosworth Community Hospital (Sunnyside) (P133, LPT)",VIRGIN MEDIA BUSINESS,853083001/004/1023,939.79
Department of Health,Leicestershire Partnership NHS Trust,27/10/23,Landline Telephone Rental / Calls,"Hynca Lodge (P33, LPT)",VIRGIN MEDIA BUSINESS,853083001/004/1023,420.62
Department of Health,Leicestershire Partnership NHS Trust,27/10/23,Landline Telephone Rental / Calls,"Legion House, Ashby",VIRGIN MEDIA BUSINESS,853083001/004/1023,21.40
Department of Health,Leicestershire Partnership NHS Trust,27/10/23,Landline Telephone Rental / Calls,"Loughborough Hospital (P136, LPT)",VIRGIN MEDIA BUSINESS,853083001/004/1023,4294.72
Department of Health,Leicestershire Partnership NHS Trust,27/10/23,Landline Telephone Rental / Calls,Mawson House (LPT),VIRGIN MEDIA BUSINESS,853083001/004/1023,454.58
Department of Health,Leicestershire Partnership NHS Trust,27/10/23,Landline Telephone Rental / Calls,Merlyn Vaz Centre (CHP),VIRGIN MEDIA BUSINESS,853083001/004/1023,1433.33
Department of Health,Leicestershire Partnership NHS Trust,27/10/23,Landline Telephone Rental / Calls,"Mett Centre (P49, LPT)",VIRGIN MEDIA BUSINESS,853083001/004/1023,110.92
Department of Health,Leicestershire Partnership NHS Trust,27/10/23,Landline Telephone Rental / Calls,NSPCC Training Cente,VIRGIN MEDIA BUSINESS,853083001/004/1023,159.96
Department of Health,Leicestershire Partnership NHS Trust,27/10/23,Landline Telephone Rental / Calls,New Parks Health Centre (PROPCO),VIRGIN MEDIA BUSINESS,853083001/004/1023,1545.02
Department of Health,Leicestershire Partnership NHS Trust,27/10/23,Landline Telephone Rental / Calls,"OSL House (P54, LPT)",VIRGIN MEDIA BUSINESS,853083001/004/1023,915.78
Department of Health,Leicestershire Partnership NHS Trust,27/10/23,Landline Telephone Rental / Calls,"Orchard Resource Centre (P15, LPT)",VIRGIN MEDIA BUSINESS,853083001/004/1023,553.00
Department of Health,Leicestershire Partnership NHS Trust,27/10/23,Landline Telephone Rental / Calls,Pasley Road Health Centre (PROPCO),VIRGIN MEDIA BUSINESS,853083001/004/1023,156.76
Department of Health,Leicestershire Partnership NHS Trust,27/10/23,Landline Telephone Rental / Calls,"Prince Philip House (P96, LPT)",VIRGIN MEDIA BUSINESS,853083001/004/1023,1250.71
Department of Health,Leicestershire Partnership NHS Trust,27/10/23,Landline Telephone Rental / Calls,Rushey Mead Health Centre (PROPCO),VIRGIN MEDIA BUSINESS,853083001/004/1023,72.00
Department of Health,Leicestershire Partnership NHS Trust,27/10/23,Landline Telephone Rental / Calls,"Springfield Road Health Centre (P92, LPT)",VIRGIN MEDIA BUSINESS,853083001/004/1023,372.36
Department of Health,Leicestershire Partnership NHS Trust,27/10/23,Landline Telephone Rental / Calls,"St Peters Health Center (Part 1st and 2nd floors) (P66, LPT)",VIRGIN MEDIA BUSINESS,853083001/004/1023,1559.95
Department of Health,Leicestershire Partnership NHS Trust,27/10/23,Landline Telephone Rental / Calls,"Swithland House - London Road 352 (P44, LPT)",VIRGIN MEDIA BUSINESS,853083001/004/1023,246.72
Department of Health,Leicestershire Partnership NHS Trust,27/10/23,Landline Telephone Rental / Calls,"The Cedars (P19, LPT)",VIRGIN MEDIA BUSINESS,853083001/004/1023,737.64
Department of Health,Leicestershire Partnership NHS Trust,27/10/23,Landline Telephone Rental / Calls,"The Willows - Cordelia Close (P22, LPT)",VIRGIN MEDIA BUSINESS,853083001/004/1023,485.22
Department of Health,Leicestershire Partnership NHS Trust,27/10/23,Landline Telephone Rental / Calls,"Valentine Centre (P3, LPT)",VIRGIN MEDIA BUSINESS,853083001/004/1023,562.30
Department of Health,Leicestershire Partnership NHS Trust,27/10/23,Landline Telephone Rental / Calls,Warren Park Way 25 (PROPCO),VIRGIN MEDIA BUSINESS,853083001/004/1023,757.38
Department of Health,Leicestershire Partnership NHS Trust,27/10/23,Landline Telephone Rental / Calls,"Westcotes Group -Westcotes House (P78, LPT)",VIRGIN MEDIA BUSINESS,853083001/004/1023,823.81
Department of Health,Leicestershire Partnership NHS Trust,27/10/23,Landline Telephone Rental / Calls,"Winstanley Drive Health Centre (P8, LPT)",VIRGIN MEDIA BUSINESS,853083001/004/1023,46.44
Department of Health,Leicestershire Partnership NHS Trust,27/10/23,Electricity,Estates & Facilities Central,UHL NHS TRUST (RWE),L0275070,56255.76
Department of Health,Leicestershire Partnership NHS Trust,27/10/23,WIP Project Not in BS - Buildings excl Dwellings,Work in Progress,TILBURY DOUGLAS CONSTRUCTION LTD,23100343,224796.16
Department of Health,Leicestershire Partnership NHS Trust,27/10/23,WIP Project Not in BS - Buildings excl Dwellings,Work in Progress,TILBURY DOUGLAS CONSTRUCTION LTD,23100344,42995.71
Department of Health,Leicestershire Partnership NHS Trust,30/10/23,Crs_NHS_LT1y -Resus Inventory Supplied.,Balance Sheet Collection,SUPPLY CHAIN CO LTD,1124201178,25704.46
Department of Health,Leicestershire Partnership NHS Trust,30/10/23,Occupational Health,HR Operations,UHL NHS TRUST (RWE),L0275120,88138.00
